Workbook

Sheet Лист1
A1: 489 | D1: макс цена | E1: =A4/11000 -> 4.909559091
A2: 11044 | D2: мин цена | E2: =A4/12000 -> 4.500429167
A3: =A2*A1% -> 54005.16
A4: 54005.15
A5: =ABS(A4-A3) -> 0.009999999995 | E5: цена | F5: штук | G5: штук округл | H5: сумма | I5: разница
E6: 4.51 | F6: =$A$4/E6 -> 11974.53437 | G6: =ROUND(F6,0) -> 11975 | H6: =G6*E6 -> 54007.25 | I6: =ABS($A$4-H6) -> 2.1
E7: 4.52 | F7: =$A$4/E7 -> 11948.04204 | G7: =ROUND(F7,0) -> 11948 | H7: =G7*E7 -> 54004.96 | I7: =ABS($A$4-H7) -> 0.19
E8: 4.53 | F8: 11921.66667 | G8: 11922 | H8: 54006.66 | I8: 1.51
E9: 4.54 | F9: 11895.40749 | G9: 11895 | H9: 54003.3 | I9: 1.85
E10: 4.55 | F10: 11869.26374 | G10: 11869 | H10: 54003.95 | I10: 1.2
E11: 4.56 | F11: 11843.23465 | G11: 11843 | H11: 54004.08 | I11: 1.07
E12: 4.57 | F12: 11817.31947 | G12: 11817 | H12: 54003.69 | I12: 1.46
E13: 4.58 | F13: 11791.51747 | G13: 11792 | H13: 54007.36 | I13: 2.21
E14: 4.59 | F14: 11765.82789 | G14: 11766 | H14: 54005.94 | I14: 0.79
E15: 4.6 | F15: 11740.25 | G15: 11740 | H15: 54004 | I15: 1.15
E16: 4.61 | F16: 11714.78308 | G16: 11715 | H16: 54006.15 | I16: 1
E17: 4.62 | F17: 11689.42641 | G17: 11689 | H17: 54003.18 | I17: 1.97
E18: 4.63 | F18: 11664.17927 | G18: 11664 | H18: 54004.32 | I18: 0.83
E19: 4.64 | F19: 11639.04095 | G19: 11639 | H19: 54004.96 | I19: 0.19
E20: 4.65 | F20: 11614.01075 | G20: 11614 | H20: 54005.1 | I20: 0.05
E21: 4.66 | F21: 11589.08798 | G21: 11589 | H21: 54004.74 | I21: 0.41
E22: 4.67 | F22: 11564.27195 | G22: 11564 | H22: 54003.88 | I22: 1.27
E23: 4.68 | F23: 11539.56197 | G23: 11540 | H23: 54007.2 | I23: 2.05
E24: 4.69 | F24: 11514.95736 | G24: 11515 | H24: 54005.35 | I24: 0.2
E25: 4.7 | F25: 11490.45745 | G25: 11490 | H25: 54003 | I25: 2.15
E26: 4.71 | F26: 11466.06157 | G26: 11466 | H26: 54004.86 | I26: 0.29
E27: 4.72 | F27: 11441.76907 | G27: 11442 | H27: 54006.24 | I27: 1.09
E28: 4.73 | F28: 11417.57928 | G28: 11418 | H28: 54007.14 | I28: 1.99
E29: 4.74 | F29: 11393.49156 | G29: 11393 | H29: 54002.82 | I29: 2.33
E30: 4.75 | F30: 11369.50526 | G30: 11370 | H30: 54007.5 | I30: 2.35
E31: 4.76 | F31: 11345.61975 | G31: 11346 | H31: 54006.96 | I31: 1.81
E32: 4.77 | F32: 11321.83438 | G32: 11322 | H32: 54005.94 | I32: 0.7899999999
E33: 4.78 | F33: 11298.14854 | G33: 11298 | H33: 54004.44 | I33: 0.7100000001
E34: 4.79 | F34: 11274.56159 | G34: 11275 | H34: 54007.25 | I34: 2.1
E35: 4.8 | F35: 11251.07292 | G35: 11251 | H35: 54004.8 | I35: 0.3500000001
E36: 4.81 | F36: 11227.68191 | G36: 11228 | H36: 54006.68 | I36: 1.53
E37: 4.82 | F37: 11204.38797 | G37: 11204 | H37: 54003.28 | I37: 1.87
E38: 4.83 | F38: 11181.19048 | G38: 11181 | H38: 54004.23 | I38: 0.9200000001
E39: 4.84 | F39: 11158.08884 | G39: 11158 | H39: 54004.72 | I39: 0.4300000001
E40: 4.85 | F40: 11135.08247 | G40: 11135 | H40: 54004.75 | I40: 0.4000000001
E41: 4.86 | F41: 11112.17078 | G41: 11112 | H41: 54004.32 | I41: 0.8300000001
E42: 4.87 | F42: 11089.35318 | G42: 11089 | H42: 54003.43 | I42: 1.72
E43: 4.88 | F43: 11066.6291 | G43: 11067 | H43: 54006.96 | I43: 1.81
E44: 4.89 | F44: 11043.99796 | G44: 11044 | H44: 54005.16 | I44: 0.009999999886
E45: 4.9 | F45: 11021.45918 | G45: 11021 | H45: 54002.9 | I45: 2.25
E46: 4.91 | F46: 10999.01222 | G46: 10999 | H46: 54005.09 | I46: 0.06000000011
